{"text_format":"1","workbook":"xlsx","n_sheets":9,"sheets":["11","111","22","222","33","333","44","444","ميزانية"],"not_rendered":{"charts":0,"images":0,"macros":0,"external_links":0,"defined_names":57,"comments":0,"pivot_tables":0},"unopened":[],"bounds":{"document_bytes":16777216,"sheet_cells":100000,"rows_first":2000,"rows_last":500,"rows_between":2000,"halvings":0,"cell_chars":16384,"cell_head_chars":4096},"cells_cut":0,"cells_raw":0,"read":"whole","date_system":"1900"}

{"sheet":"11","index":0,"n_rows":21,"n_cols":13,"rows_kept":21,"cut":false,"hidden":false,"merged":[[0,9,1,9],[0,10,1,10],[1,6,1,8],[0,0,0,1],[0,2,1,2],[0,3,1,3],[0,4,1,4],[0,5,1,5],[0,6,0,8]]}
["الصف الأول",null,"الفصل","الرقم القومى","النوع","تاريخ الميلاد","السن أول اكتوبر",null,null,"القــيد","الديانة","ت","محافظة"]
["م","بنــــــــــــات",null,{"$f":"#REF!","v":{"$error":"#REF!"}},null,null,{"$f":"#REF!","v":{"$error":"#REF!"}},null,null,null,null,"ولى الأمر","الميلاد"]
[1,"خالد محمد",null,null,null,null,null,null,null,"دمج"]
[2,"برسوم إبراهيم",null,null,null,null,null,null,null,"دمج","مسيحى"]
[3,333]
[8,444,null,null,null,null,null,null,null,"دمج"]
[9,555,null,null,null,null,null,null,null,"دمج"]
[10,666]
[11,777,null,null,null,null,null,null,null,"دمج"]
[12,888,null,null,null,null,null,null,null,"دمج"]
[13,999]
[14,1110,null,null,null,null,null,null,null,"دمج"]
[15,1221,null,null,null,null,null,null,null,"دمج"]
[16,1332,null,null,null,null,null,null,null,"دمج"]
[17,1443,null,null,null,null,null,null,null,"دمج"]
[18,1554,null,null,null,null,null,null,null,"دمج"]
[19,1665,null,null,null,null,null,null,null,"دمج"]
[20,1776,null,null,null,null,null,null,null,"دمج"]
[21,1887,null,null,null,null,null,null,null,"دمج"]
[22,1998,null,null,null,null,null,null,null,"دمج"]
[23,2109,null,null,null,null,null,null,null,"دمج"]

{"sheet":"111","index":1,"n_rows":25,"n_cols":13,"rows_kept":25,"cut":false,"hidden":false,"merged":[[0,9,1,9],[0,10,1,10],[1,6,1,8],[0,0,0,1],[0,2,1,2],[0,3,1,3],[0,4,1,4],[0,5,1,5],[0,6,0,8]]}
["الصف الأول",null,"الفصل","الرقم القومى","النوع","تاريخ الميلاد","السن أول اكتوبر",null,null,"القــيد","الديانة","ت","محافظة"]
["م","بنــــــــــــات",null,{"$f":"#REF!","v":{"$error":"#REF!"}},null,null,{"$f":"#REF!","v":{"$error":"#REF!"}},null,null,null,null,"ولى الأمر","الميلاد"]
[1,"هدى محمد",null,null,null,null,null,null,null,"دمج"]
[2,222,null,null,null,null,null,null,null,"دمج"]
[3,333]
[4,444,null,null,null,null,null,null,null,"دمج"]
[5,"لوجي وليد محمد مصطفي",null,null,null,null,null,null,null,"دمج"]
[6,"مايبل سيدهم صليب سيدهم",null,null,null,null,null,null,null,null,"مسيحية"]
[7,"مرام محمود محمد محمود",null,null,null,null,null,null,null,"دمج"]
[8,"مريم احمد سعد مصطفي",null,null,null,null,null,null,null,"دمج"]
[9,"مريم احمد عبد الوهاب محمود"]
[10,1110,null,null,null,null,null,null,null,"دمج"]
[11,1221,null,null,null,null,null,null,null,"دمج"]
[12,1332]
[13,1443]
[14,1554]
[15,1665]
[16,1776]
[17,1887]
[18,1998]
[19,2109]
[20,2220]
[21,2331]
[22,2442,null,null,null,null,null,null,null,{"$f":"IF(ISBLANK(#REF!),\"\",#REF!)","v":{"$error":"#REF!"}}]
[23,2553,null,null,null,null,null,null,null,{"$f":"IF(ISBLANK(#REF!),\"\",#REF!)","v":{"$error":"#REF!"}}]

{"sheet":"22","index":2,"n_rows":23,"n_cols":13,"rows_kept":23,"cut":false,"hidden":false,"merged":[[0,9,1,9],[0,10,1,10],[1,6,1,8],[0,0,0,1],[0,2,1,2],[0,3,1,3],[0,4,1,4],[0,5,1,5],[0,6,0,8]]}
["الصف الثانى",null,"الفصل","الرقم القومى","النوع","تاريخ الميلاد","السن أول اكتوبر",null,null,"القــيد","الديانة","ت","محافظة"]
["م","بنـــــــــــــــون",null,{"$f":"#REF!","v":{"$error":"#REF!"}},null,null,{"$f":"#REF!","v":{"$error":"#REF!"}},null,null,null,null,"ولى الأمر","الميلاد"]
[1,111,null,null,null,null,null,null,null,"دمج"]
[2,222,null,null,null,null,null,null,null,"دمج"]
[3,333]
[4,"ميلاد حنا",null,null,null,null,null,null,null,"دمج","مسيحى"]
[5,555,null,null,null,null,null,null,null,"دمج"]
[6,"احمد علاء يحيي محمود"]
[7,"احمد على سيد عثمان",null,null,null,null,null,null,null,"دمج"]
[8,"احمد عماد احمد سليم",null,null,null,null,null,null,null,"دمج"]
[9,"احمد محمد خميس عيسى"]
[10,"احمد محمد عبد المنعم مهدي",null,null,null,null,null,null,null,"دمج"]
[11,"احمد محمد عزازى قليعى",null,null,null,null,null,null,null,"دمج"]
[12,"احمد محمود ابو هشيمة محمد"]
[13,"احمد محمود محمود قاسم"]
[14,"ادم احمد محمود عبد الوهاب"]
[15,"ادم ايمن عبد الله محمود"]
[16,"ادم محمد فتحي لملوم"]
[17,"اسامه ايمن احمد عيسى",null,null,null,null,null,null,null,"دمج"]
[18,"اسر توفيق عبد الله محمود",null,null,null,null,null,null,null,"دمج"]
[19,"اسر على عبدالله عبد العزيز عزازى",null,null,null,null,null,null,null,"دمج"]
[20,"اسر وليد احمد رضا",null,null,null,null,null,null,null,"دمج"]
[21,2331,null,null,null,null,null,null,null,{"$f":"IF(ISBLANK(#REF!),\"\",#REF!)","v":{"$error":"#REF!"}}]

{"sheet":"222","index":3,"n_rows":22,"n_cols":13,"rows_kept":22,"cut":false,"hidden":false,"merged":[[0,9,1,9],[0,10,1,10],[1,6,1,8],[0,0,0,1],[0,2,1,2],[0,3,1,3],[0,4,1,4],[0,5,1,5],[0,6,0,8]]}
["الصف الثانى",null,"الفصل","الرقم القومى","النوع","تاريخ الميلاد","السن أول اكتوبر",null,null,"القــيد","الديانة","ت","محافظة"]
["م","بنــــــــــــات",null,{"$f":"#REF!","v":{"$error":"#REF!"}},null,null,{"$f":"#REF!","v":{"$error":"#REF!"}},null,null,null,null,"ولى الأمر","الميلاد"]
[1,111,null,null,null,null,null,null,null,"دمج"]
[2,222,null,null,null,null,null,null,null,"دمج"]
[3,333]
[4,444,null,null,null,null,null,null,null,"دمج"]
[5,555,null,null,null,null,null,null,null,"دمج"]
[6,666]
[7,777,null,null,null,null,null,null,null,"دمج"]
[8,888,null,null,null,null,null,null,null,"دمج"]
[9,999]
[10,1110,null,null,null,null,null,null,null,"دمج"]
[11,1221,null,null,null,null,null,null,null,"دمج"]
[12,1332,null,null,null,null,null,null,null,"دمج"]
[13,1443]
[14,1554]
[15,1665]
[16,1776]
[17,1887]
[18,1998,null,null,null,null,null,null,null,"دمج"]
[19,2109,null,null,null,null,null,null,null,"دمج"]
[20,2220,null,null,null,null,null,null,null,"دمج"]

{"sheet":"33","index":4,"n_rows":19,"n_cols":13,"rows_kept":19,"cut":false,"hidden":false,"merged":[[0,9,1,9],[0,10,1,10],[1,6,1,8],[0,0,0,1],[0,2,1,2],[0,3,1,3],[0,4,1,4],[0,5,1,5],[0,6,0,8]]}
["الصف الثالث",null,"الفصل","الرقم القومى","النوع","تاريخ الميلاد","السن أول اكتوبر",null,null,"القــيد","الديانة","ت","محافظة"]
["م","بنـــــــــــــــون",null,{"$f":"#REF!","v":{"$error":"#REF!"}},null,null,{"$f":"#REF!","v":{"$error":"#REF!"}},null,null,null,null,"ولى الأمر","الميلاد"]
[1,111,null,null,null,null,null,null,null,"دمج"]
[2,222,null,null,null,null,null,null,null,"دمج"]
[3,333]
[4,444,null,null,null,null,null,null,null,"دمج"]
[5,555,null,null,null,null,null,null,null,"دمج"]
[6,666]
[7,777,null,null,null,null,null,null,null,"دمج"]
[8,"كيرلس يسري ابو حنا حنين",null,null,null,null,null,null,null,"دمج","مسيحى"]
[9,"مازن احمد جمال سيد"]
[10,"مازن سامي شعبان عبد الغني",null,null,null,null,null,null,null,"دمج"]
[11,"محمد ابرهيم محمد عبد الله",null,null,null,null,null,null,null,"دمج"]
[12,"محمد احمد السيد ابرهيم"]
[13,"محمد احمد عبد الرحمن احمد"]
[14,1554]
[15,1665]
[16,1776]
[17,1887,null,null,null,null,null,null,null,"دمج"]

{"sheet":"333","index":5,"n_rows":21,"n_cols":13,"rows_kept":21,"cut":false,"hidden":false,"merged":[[0,9,1,9],[0,10,1,10],[1,6,1,8],[0,0,0,1],[0,2,1,2],[0,3,1,3],[0,4,1,4],[0,5,1,5],[0,6,0,8]]}
["الصف الثالث",null,"الفصل","الرقم القومى","النوع","تاريخ الميلاد","السن أول اكتوبر",null,null,"القــيد","الديانة","ت","محافظة"]
["م","بنــــــــــــات",null,{"$f":"#REF!","v":{"$error":"#REF!"}},null,null,{"$f":"#REF!","v":{"$error":"#REF!"}},null,null,null,null,"ولى الأمر","الميلاد"]
[1,111,{"$f":"IF(ISBLANK(#REF!),\"\",#REF!)","v":{"$error":"#REF!"}},{"$f":"IF(ISBLANK(#REF!),\"\",#REF!)","v":{"$error":"#REF!"}},{"$f":"A_ID(D3,3)","v":{"$error":"#NAME?"}},{"$f":"IF(ISBLANK(#REF!),\"\",DATE(IF(LEFT(D3,1)*1=3,20,19)&MID(D3,2,2),MID(D3,4,2),MID(D3,6,2)))","v":{"$error":"#REF!"}},{"$f":"IF(ISBLANK(#REF!),\"\",IF(F3>1,DATEDIF(F3,$G$2,\"md\"),\"\"))","v":{"$error":"#REF!"}},{"$f":"IF(ISBLANK(#REF!),\"\",IF(F3>1,DATEDIF(F3,$G$2,\"ym\"),\"\"))","v":{"$error":"#REF!"}},{"$f":"IF(ISBLANK(#REF!),\"\",IF(F3>1,DATEDIF(F3,$G$2,\"y\"),\"\"))","v":{"$error":"#REF!"}},"دمج",{"$f":"IF(ISBLANK(#REF!),\"\",#REF!)","v":{"$error":"#REF!"}},{"$f":"IF(ISBLANK(#REF!),\"\",#REF!)","v":{"$error":"#REF!"}},{"$f":"A_ID(D3,1)","v":{"$error":"#NAME?"}}]
[2,222,{"$f":"IF(ISBLANK(#REF!),\"\",#REF!)","v":{"$error":"#REF!"}},{"$f":"IF(ISBLANK(#REF!),\"\",#REF!)","v":{"$error":"#REF!"}},{"$f":"A_ID(D4,3)","v":{"$error":"#NAME?"}},{"$f":"IF(ISBLANK(#REF!),\"\",DATE(IF(LEFT(D4,1)*1=3,20,19)&MID(D4,2,2),MID(D4,4,2),MID(D4,6,2)))","v":{"$error":"#REF!"}},{"$f":"IF(ISBLANK(#REF!),\"\",IF(F4>1,DATEDIF(F4,$G$2,\"md\"),\"\"))","v":{"$error":"#REF!"}},{"$f":"IF(ISBLANK(#REF!),\"\",IF(F4>1,DATEDIF(F4,$G$2,\"ym\"),\"\"))","v":{"$error":"#REF!"}},{"$f":"IF(ISBLANK(#REF!),\"\",IF(F4>1,DATEDIF(F4,$G$2,\"y\"),\"\"))","v":{"$error":"#REF!"}},"دمج",{"$f":"IF(ISBLANK(#REF!),\"\",#REF!)","v":{"$error":"#REF!"}},{"$f":"IF(ISBLANK(#REF!),\"\",#REF!)","v":{"$error":"#REF!"}},{"$f":"A_ID(D4,1)","v":{"$error":"#NAME?"}}]
[3,333]
[4,444,null,null,null,null,null,null,null,"دمج"]
[5,555,null,null,null,null,null,null,null,"دمج"]
[6,666]
[7,777,null,null,null,null,null,null,null,"دمج"]
[8,888,null,null,null,null,null,null,null,"دمج"]
[9,999]
[10,1110,null,null,null,null,null,null,null,"دمج"]
[11,1221,null,null,null,null,null,null,null,"دمج"]
[12,1332,null,null,null,null,null,null,null,"دمج"]
[13,1443]
[14,1554]
[15,1665]
[16,1776]
[17,1887,null,null,null,null,null,null,null,"دمج"]
[18,1998,null,null,null,null,null,null,null,"دمج"]
[19,2109,null,null,null,null,null,null,null,"دمج"]

{"sheet":"44","index":6,"n_rows":20,"n_cols":13,"rows_kept":20,"cut":false,"hidden":false,"merged":[[0,9,1,9],[0,10,1,10],[1,6,1,8],[0,0,0,1],[0,2,1,2],[0,3,1,3],[0,4,1,4],[0,5,1,5],[0,6,0,8]]}
["الصف الرابع",null,"الفصل","الرقم القومى","النوع","تاريخ الميلاد","السن أول اكتوبر",null,null,"القــيد","الديانة","ت","محافظة"]
["م","بنـــــــــــــــون",null,{"$f":"#REF!","v":{"$error":"#REF!"}},null,null,{"$f":"#REF!","v":{"$error":"#REF!"}},null,null,null,null,"ولى الأمر","الميلاد"]
[1,111,null,null,null,null,null,null,null,"دمج"]
[2,222,null,null,null,null,null,null,null,"دمج"]
[3,333]
[4,444,null,null,null,null,null,null,null,"دمج"]
[5,"باسم عماد رمضان فرج",null,null,null,null,null,null,null,"دمج"]
[6,"بدر محمد سعد احمد"]
[7,"بدر يونس سامى يونس",null,null,null,null,null,null,null,"دمج"]
[8,"بلال احمد محمد عبد الفتاح",null,null,null,null,null,null,null,"دمج"]
[9,"بلال نور الدين عبد الحفيظ احمد"]
[10,"حسن محمد حسن نافع ",null,null,null,null,null,null,null,"دمج"]
[11,"حسن مسلم محمد فرج",null,null,null,null,null,null,null,"دمج"]
[12,"حمزه وليد عبد النعيم عبد القادر"]
[13,"رمضان احمد رمضان مجاهد"]
[14,1554]
[15,1665]
[16,1776]
[17,1887]
[18,1998,null,null,null,null,null,null,null,"دمج"]

{"sheet":"444","index":7,"n_rows":22,"n_cols":13,"rows_kept":22,"cut":false,"hidden":false,"merged":[[0,9,1,9],[0,10,1,10],[1,6,1,8],[0,0,0,1],[0,2,1,2],[0,3,1,3],[0,4,1,4],[0,5,1,5],[0,6,0,8]]}
["الصف الرابع",null,"الفصل","الرقم القومى","النوع","تاريخ الميلاد","السن أول اكتوبر",null,null,"القــيد","الديانة","ت","محافظة"]
["م","بنــــــــــــات",null,{"$f":"#REF!","v":{"$error":"#REF!"}},null,null,{"$f":"#REF!","v":{"$error":"#REF!"}},null,null,null,null,"ولى الأمر","الميلاد"]
[1,111,null,null,null,null,null,null,null,"دمج"]
[2,222,null,null,null,null,null,null,null,"دمج"]
[3,333]
[4,444,null,null,null,null,null,null,null,"دمج"]
[5,555,null,null,null,null,null,null,null,"دمج"]
[6,666]
[7,"روماني عزت عبد السيد شحاتة",null,null,null,null,null,null,null,"دمج","مسيحى"]
[8,"ريفاد محمد كيلانى غانم",null,null,null,null,null,null,null,"دمج"]
[9,"زياد سعيد حسن منيسى"]
[10,"زين محمد زكريا محمد",null,null,null,null,null,null,null,"دمج"]
[11,"سمير محمد سمير رشاد",null,null,null,null,null,null,null,"دمج"]
[12,"شنودة ذكريا سمير جيد",null,null,null,null,null,null,null,"دمج","مسيحى"]
[13,"صبحي صالح صبحي عبد العاطي",null,null,null,null,null,null,null,"دمج"]
[14,"عادل محمد عادل محمد"]
[15,1665]
[16,1776]
[17,1887]
[18,1998]
[19,2109]
[20,2220]

{"sheet":"ميزانية","index":8,"n_rows":26,"n_cols":10,"rows_kept":26,"cut":false,"hidden":false,"merged":[[0,1,0,3],[0,7,0,9]]}
[null,"كشف بأسماء تلاميذ الدمج",null,null,null,null,null,"كشف بأسماء التلاميذ المسيحيين"]
[null,"م","الاسم","الصــف",null,null,null,"م","الاسم","الصــف"]
[null,1,null,null,null,null,null,1]
[null,2,null,null,null,null,"اريد تعبئة الكشوف اتوماتيك ",2]
[null,3,null,null,null,null,"وجزاكم الله خيرا",3]
[null,4,null,null,null,null,null,32]
[null,5,null,null,null,null,null,33]
[null,6,null,null,null,null,null,34]
[null,7,null,null,null,null,null,35]
[null,8,null,null,null,null,null,36]
[null,9,null,null,null,null,null,37]
[null,10,null,null,null,null,null,38]
[null,11,null,null,null,null,null,39]
[null,12,null,null,null,null,null,40]
[null,13,null,null,null,null,null,41]
[null,14,null,null,null,null,null,42]
[null,15,null,null,null,null,null,43]
[null,16,null,null,null,null,null,44]
[null,17,null,null,null,null,null,45]
[null,18,null,null,null,null,null,46]
[null,19,null,null,null,null,null,47]
[null,20,null,null,null,null,null,48]
[null,21,null,null,null,null,null,49]
[null,22,null,null,null,null,null,50]
[null,23,null,null,null,null,null,51]
[null,24,null,null,null,null,null,52]